Departmental Area,Entity,Payment Date,Expense Type,Expense Area,Supplier Name,Payment Reference,Invoice Distribution Amount,Description,Suplier Type,Expenditure Type
UK Statistics Family,Office for National Statistics,01/12/2020,Exp - Purchase Of Goods/Services - IT Contractual Services,International Trade And Transactions,Mango Solutions,192135,"16,050.72",Information Management Services,SME,Programme Expenditure
UK Statistics Family,Office for National Statistics,01/12/2020,Exp - Purchase Of Goods/Services - IT Contractual Services,International Trade And Transactions,Mango Solutions,192135,"42,456.48",Information Management Services,SME,Programme Expenditure
UK Statistics Family,Office for National Statistics,01/12/2020,Exp - Purchase Of Goods/Services - IT Contractual Services,Expansion Programme,Kainos,192136,"311,277.80",Information Management Services,Large,Programme Expenditure
UK Statistics Family,Office for National Statistics,01/12/2020,Major Works Over 25K,Property Titchfield,Vinci Construction UK Limited,192140,"1,800.00",Facilities Mangement Services,Large,Programme Expenditure
UK Statistics Family,Office for National Statistics,01/12/2020,Major Works Over 25K,Property Titchfield,Vinci Construction UK Limited,192140,"2,400.00",Facilities Mangement Services,Large,Programme Expenditure
UK Statistics Family,Office for National Statistics,01/12/2020,Buildings Under Construction,Property Christchurch,Vinci Construction UK Limited,192140,"97,188.70",Facilities Mangement Services,Large,Programme Expenditure
UK Statistics Family,Office for National Statistics,01/12/2020,Other Goods And Services,Census & Soc Methodology Dd,University of Southampton,192145,"30,419.28",Statistical Services,SME,Programme Expenditure
UK Statistics Family,Office for National Statistics,01/12/2020,Other Goods And Services,Social Survey Transformation Newport,Nisra,192147,90000,Statistical Services,Large,Programme Expenditure
UK Statistics Family,Office for National Statistics,01/12/2020,Other Goods And Services,Social Survey Transformation Newport,Nisra,192147,"202,200.00",Statistical Services,Large,Programme Expenditure
UK Statistics Family,Office for National Statistics,01/12/2020,Exp - Purchase Of Goods/Services - Contractors,Testing,La International,192150,"22,683.28",Information Management Services,SME,Programme Expenditure
UK Statistics Family,Office for National Statistics,01/12/2020,Exp - Purchase Of Goods/Services - Contractors,Data Architecture,La International,192150,7112.52,Information Management Services,SME,Programme Expenditure
UK Statistics Family,Office for National Statistics,01/12/2020,Exp - Purchase Of Goods/Services - Contractors,Data Architecture,La International,192150,"3,524.22",Information Management Services,SME,Programme Expenditure
UK Statistics Family,Office for National Statistics,01/12/2020,Exp - Purchase Of Goods/Services - Contractors,Data Architecture,La International,192150,"17,685.24",Information Management Services,SME,Programme Expenditure
UK Statistics Family,Office for National Statistics,01/12/2020,Exp - Purchase Of Goods/Services - Contractors,Tech Delivery Data As A Platform,La International,192150,"8,970.86",Information Management Services,SME,Programme Expenditure
UK Statistics Family,Office for National Statistics,01/12/2020,Exp - Purchase Of Goods/Services - Contractors,IT Applications,La International,192150,"8,340.48",Information Management Services,SME,Programme Expenditure
UK Statistics Family,Office for National Statistics,01/12/2020,Exp - Purchase Of Goods/Services - Contractors,Digital Delivery,La International,192150,"4,485.42",Information Management Services,SME,Programme Expenditure
UK Statistics Family,Office for National Statistics,01/12/2020,Exp - Purchase Of Goods/Services - Contractors,Digital Delivery,La International,192150,"9,611.64",Information Management Services,SME,Programme Expenditure
UK Statistics Family,Office for National Statistics,01/12/2020,Exp - Purchase Of Goods And Services Consultants,Consultancy Management,Deloitte,192151,"68,904.00",Consultancy,Large,Programme Expenditure
UK Statistics Family,Office for National Statistics,01/12/2020,Marketing & Media,Social Surveys Division,APS Group,192158,"27,772.06",Mailing Services,Large,Programme Expenditure
UK Statistics Family,Office for National Statistics,01/12/2020,EXP - PURCHASE OF GOODS/SERVICES -  NON IT CONTRACTUAL PAYMENTS,Covid Infection Survey,HH Associates Ltd,192165,"12,194.26",Print and Post Services,SME,Programme Expenditure
UK Statistics Family,Office for National Statistics,01/12/2020,EXP - PURCHASE OF GOODS/SERVICES -  NON IT CONTRACTUAL PAYMENTS,Covid Infection Survey,HH Associates Ltd,192165,38898.8,Print and Post Services,SME,Programme Expenditure
UK Statistics Family,Office for National Statistics,01/12/2020,Marketing & Media,Stakeholder Engagement And Comms,Manning Gottlieb,192166,"29,433.42",Marketing Services,Large,Programme Expenditure
UK Statistics Family,Office for National Statistics,01/12/2020,Telecoms,IT Operations,Freedom Communications (UK) Ltd,192167,"72,666.94",Software Licenses,Large,Programme Expenditure
UK Statistics Family,Office for National Statistics,01/12/2020,Exp - Purchase Of Goods/Services - Contractors,Business Architecture,LA FOSSE ASSOCIATES LIMITED,192170,"24,280.00",Information Management Services,Large,Programme Expenditure
UK Statistics Family,Office for National Statistics,01/12/2020,Exp - Purchase Of Goods/Services - Contractors,Consultancy Management,LA FOSSE ASSOCIATES LIMITED,192170,"3,599.94",Information Management Services,Large,Programme Expenditure
UK Statistics Family,Office for National Statistics,01/12/2020,Exp - Purchase Of Goods/Services - Contractors,Consultancy Management,LA FOSSE ASSOCIATES LIMITED,192170,"3,150.00",Information Management Services,Large,Programme Expenditure
UK Statistics Family,Office for National Statistics,01/12/2020,Exp - Purchase Of Goods/Services - Contractors,Consultancy Management,LA FOSSE ASSOCIATES LIMITED,192170,"19,590.00",Information Management Services,Large,Programme Expenditure
UK Statistics Family,Office for National Statistics,01/12/2020,Exp - Purchase Of Goods/Services - Contractors,Consultancy Management,LA FOSSE ASSOCIATES LIMITED,192170,"2,750.00",Information Management Services,Large,Programme Expenditure
UK Statistics Family,Office for National Statistics,01/12/2020,Exp - Purchase Of Goods/Services - Contractors,INTEGRATED DATA STRATEGY AND DELIVERY,LA FOSSE ASSOCIATES LIMITED,192170,"3,450.00",Information Management Services,Large,Programme Expenditure
UK Statistics Family,Office for National Statistics,01/12/2020,Exp - Purchase Of Goods/Services - Contractors,Data Architecture,LA FOSSE ASSOCIATES LIMITED,192170,"4,050.00",Information Management Services,Large,Programme Expenditure
UK Statistics Family,Office for National Statistics,01/12/2020,Exp - Purchase Of Goods/Services - Contractors,Business Statistics Transformation,LA FOSSE ASSOCIATES LIMITED,192170,"3,300.00",Information Management Services,Large,Programme Expenditure
UK Statistics Family,Office for National Statistics,01/12/2020,EXP - PURCHASE OF GOODS/SERVICES -  NON IT CONTRACTUAL PAYMENTS,Census CCS Data Collection,Banner Group Ltd,192173,"29,356.80",Stationery,SME,Programme Expenditure
UK Statistics Family,Office for National Statistics,02/12/2020,"ICT Outsourcing, Maintenance And Support",Recruitment ,Cabinet Office,192192,"5,604.00",Fast Stream Recruitment,Large,Programme Expenditure
UK Statistics Family,Office for National Statistics,02/12/2020,EXP - PURCHASE OF GOODS/SERVICES -  NON IT CONTRACTUAL PAYMENTS,Recruitment ,Cabinet Office,192192,"25,610.28",Fast Stream Recruitment,Large,Programme Expenditure
UK Statistics Family,Office for National Statistics,02/12/2020,EXP - PURCHASE OF GOODS/SERVICES -  NON IT CONTRACTUAL PAYMENTS,Census CCS Data Collection,Adecco UK Limited,192194,"946,516.80",Census People Services Contractual,SME,Programme Expenditure
UK Statistics Family,Office for National Statistics,03/12/2020,Marketing & Media,Stakeholder Engagement And Comms,M&C Saatchi UK Ltd,192321,"12,890.84",Marketing Services,Large,Programme Expenditure
UK Statistics Family,Office for National Statistics,03/12/2020,EXP - PURCHASE OF GOODS/SERVICES -  NON IT CONTRACTUAL PAYMENTS,Data Collection Service,M&C Saatchi UK Ltd,192321,"34,154.20",Marketing Services,Large,Programme Expenditure
UK Statistics Family,Office for National Statistics,03/12/2020,EXP - PURCHASE OF GOODS/SERVICES -  NON IT CONTRACTUAL PAYMENTS,Census CCS Data Collection,Banner Group Ltd,192322,"3,307.20",Stationery,SME,Programme Expenditure
UK Statistics Family,Office for National Statistics,03/12/2020,Marketing & Media,Social Survey Transformation Newport,Banner Group Ltd,192322,"61,776.00",Stationery,SME,Programme Expenditure
UK Statistics Family,Office for National Statistics,03/12/2020,Marketing & Media,Social Surveys Division,Banner Group Ltd,192322,"56,160.00",Stationery,SME,Programme Expenditure
UK Statistics Family,Office for National Statistics,04/12/2020,Telecoms,IT Operations,Crown Hosting Data Centres Limited,192338,"2,580.00",Information Management Services,SME,Programme Expenditure
UK Statistics Family,Office for National Statistics,04/12/2020,Hosting,IT Operations,Crown Hosting Data Centres Limited,192338,"73,472.30",Information Management Services,SME,Programme Expenditure
UK Statistics Family,Office for National Statistics,04/12/2020,Exp - Purchase Of Goods/Services - Training & Development - Seminar & Conference Fees,Productivity Research And Professional Development,Capita Business Services Ltd,192346,45770.4,Training and Educational Services,Large,Programme Expenditure
UK Statistics Family,Office for National Statistics,04/12/2020,Exp - Purchase Of Goods And Services Consultants,Digital Delivery,Xma Limited,192347,"1,406.40",Leasing of Devices,Large,Programme Expenditure
UK Statistics Family,Office for National Statistics,04/12/2020,Postage,Digital Delivery,Xma Limited,192347,"27,844.80",Leasing of Devices,Large,Programme Expenditure
UK Statistics Family,Office for National Statistics,04/12/2020,Exp - Purchase Of Goods/Services - IT Contractual Services,Digital Delivery,Xma Limited,192347,"109,879.20",Leasing of Devices,Large,Programme Expenditure
UK Statistics Family,Office for National Statistics,04/12/2020,Software Licences At Cost - Additions,IT Operations,Softcat,192349,"31,723.22",Software Licenses,SME,Programme Expenditure
UK Statistics Family,Office for National Statistics,04/12/2020,Training & Development,IT Operations,Softcat,192349,"4,467.08",Software Licenses,SME,Programme Expenditure
UK Statistics Family,Office for National Statistics,04/12/2020,"ICT Outsourcing, Maintenance And Support",IT Operations,Softcat,192349,"16,115.38",Software Licenses,SME,Programme Expenditure
UK Statistics Family,Office for National Statistics,04/12/2020,Exp - Purchase Of Goods/Services - IT Contractual Services,Strategy And Architecture,Medley Business Solutions Ltd,192352,"28,512.00",Information Management Services,Large,Programme Expenditure
UK Statistics Family,Office for National Statistics,04/12/2020,Exp - Purchase Of Goods/Services - Contractors,Programme Delivery,Certes Computing Ltd,192353,"9,607.50",Information Management Services,SME,Programme Expenditure
UK Statistics Family,Office for National Statistics,04/12/2020,Exp - Purchase Of Goods/Services - Contractors,Strategy And Architecture,Certes Computing Ltd,192353,"32,024.40",Information Management Services,SME,Programme Expenditure
UK Statistics Family,Office for National Statistics,04/12/2020,Exp - Purchase Of Goods/Services - Contractors,Consultancy Management,Talent International,192360,"13,560.00",Information Management Services,SME,Programme Expenditure
UK Statistics Family,Office for National Statistics,04/12/2020,Exp - Purchase Of Goods/Services - Contractors,Tech Delivery Legacy Sp,Talent International,192360,"13,679.77",Information Management Services,SME,Programme Expenditure
UK Statistics Family,Office for National Statistics,04/12/2020,Exp - Purchase Of Goods/Services - Contractors,Tech Delivery Next Gen IT And Infrastructure,Talent International,192360,"14,399.76",Information Management Services,SME,Programme Expenditure
UK Statistics Family,Office for National Statistics,04/12/2020,Marketing & Media,Stakeholder Engagement And Comms,M&C Saatchi UK Ltd,192362,"38,805.53",Marketing Services,Large,Programme Expenditure
UK Statistics Family,Office for National Statistics,04/12/2020,Telecoms,Census CCS Data Collection,Cdw Limited,192363,"2,988.00",Software Licenses,Large,Programme Expenditure
UK Statistics Family,Office for National Statistics,04/12/2020,Telecoms,IT Operations,Cdw Limited,192363,"35,536.80",Software Licenses,Large,Programme Expenditure
UK Statistics Family,Office for National Statistics,04/12/2020,Survey Incentive Vouchers,Census CCS Data Collection,Banner Group Ltd,192365,"118,494.72",Stationery,SME,Programme Expenditure
UK Statistics Family,Office for National Statistics,04/12/2020,EXP - PURCHASE OF GOODS/SERVICES -  NON IT CONTRACTUAL PAYMENTS,Census CCS Data Collection,Banner Group Ltd,192365,"8,640.00",Stationery,SME,Programme Expenditure
UK Statistics Family,Office for National Statistics,04/12/2020,Exp - Purchase Of Goods/Services - Other Facilities Costs,Property London,Tandem Property Asset Management LLP - DG Lease Limited Service Charge Account,192366,"55,008.00",Rental Charges,Large,Programme Expenditure
UK Statistics Family,Office for National Statistics,07/12/2020,Exp - Purchase Of Goods/Services - Contractors,Researcher Support And Data Access ,Talent International,192538,"15,600.00",Information Management Services,SME,Programme Expenditure
UK Statistics Family,Office for National Statistics,07/12/2020,Exp - Purchase Of Goods/Services - Contractors,Digital Delivery,Talent International,192538,"12,096.00",Information Management Services,SME,Programme Expenditure
UK Statistics Family,Office for National Statistics,07/12/2020,Exp - Purchase Of Goods/Services - IT Contractual Services,Tech Delivery Next Gen IT And Infrastructure,Diegesis Limited,192540,"38,400.00",Information Management Services,Large,Programme Expenditure
UK Statistics Family,Office for National Statistics,07/12/2020,Exp - Purchase Of Goods/Services - IT Contractual Services,Tech Delivery Next Gen IT And Infrastructure,Diegesis Limited,192540,"55,020.00",Information Management Services,Large,Programme Expenditure
UK Statistics Family,Office for National Statistics,07/12/2020,Other Goods And Services,Security Advisory,Bridewell Consulting Limited,192543,"32,400.00",Consultancy,SME,Programme Expenditure
UK Statistics Family,Office for National Statistics,08/12/2020,Surveys,Social Surveys Division,Natcen Social Research,192551,"335,140.12",Statistical Services,Large,Programme Expenditure
UK Statistics Family,Office for National Statistics,08/12/2020,Exp - Purchase Of Goods/Services - Incentive Payments,Social Surveys Division,Natcen Social Research,192551,"24,413.50",Statistical Services,Large,Programme Expenditure
UK Statistics Family,Office for National Statistics,08/12/2020,EXP - PURCHASE OF GOODS/SERVICES - INCENTIVE REBATES,Social Surveys Division,Natcen Social Research,192551,"-82,200.00",Statistical Services,Large,Programme Expenditure
UK Statistics Family,Office for National Statistics,08/12/2020,Exp - Purchase Of Goods/Services - Contractors,Business Architecture,LA FOSSE ASSOCIATES LIMITED,192559,"25,129.84",Information Management Services,Large,Programme Expenditure
UK Statistics Family,Office for National Statistics,08/12/2020,Exp - Purchase Of Goods/Services - Contractors,Consultancy Management,LA FOSSE ASSOCIATES LIMITED,192559,"3,150.00",Information Management Services,Large,Programme Expenditure
UK Statistics Family,Office for National Statistics,08/12/2020,Exp - Purchase Of Goods/Services - Contractors,Consultancy Management,LA FOSSE ASSOCIATES LIMITED,192559,"16,500.00",Information Management Services,Large,Programme Expenditure
UK Statistics Family,Office for National Statistics,08/12/2020,Exp - Purchase Of Goods/Services - Contractors,Consultancy Management,LA FOSSE ASSOCIATES LIMITED,192559,2200,Information Management Services,Large,Programme Expenditure
UK Statistics Family,Office for National Statistics,08/12/2020,Exp - Purchase Of Goods/Services - Contractors,Tech Delivery Legacy Sp,LA FOSSE ASSOCIATES LIMITED,192559,"3,600.00",Information Management Services,Large,Programme Expenditure
UK Statistics Family,Office for National Statistics,08/12/2020,Exp - Purchase Of Goods/Services - Contractors,Business Statistics Transformation,LA FOSSE ASSOCIATES LIMITED,192559,3300,Information Management Services,Large,Programme Expenditure
UK Statistics Family,Office for National Statistics,08/12/2020,Exp - Purchase Of Goods/Services - Training & Development - Seminar & Conference Fees,Data Governance Legislation And Policy,Hut Six Security Limited,192561,"35,280.00",Training and Educational Services,SME,Programme Expenditure
UK Statistics Family,Office for National Statistics,08/12/2020,Marketing & Media,Stakeholder Engagement And Comms,Family & Education / iChild,192562,"84,914.40",Marketing Services,SME,Programme Expenditure
UK Statistics Family,Office for National Statistics,08/12/2020,Surveys,Covid Infection Survey,IQVIA Limited,192563,"12,752,506.80",Statistical Services,Large,Programme Expenditure
UK Statistics Family,Office for National Statistics,09/12/2020,Stationery,Lodgecard,Royal Bank of Scotland,192578,"1,034.47",Multiple Procurement Card Purchases  - Stationery ,Large,Programme Expenditure
UK Statistics Family,Office for National Statistics,09/12/2020,Other Goods And Services,GPC,Royal Bank of Scotland,192578,"53,506.50",Multiple Procurement Card Purchases - other goods/services  ,Large,Programme Expenditure
UK Statistics Family,Office for National Statistics,09/12/2020,Travel And Subsistence,Car Hire,Royal Bank of Scotland,192578,"1,840.57",Multiple Procurement Card Purchases - Vehicle Hire  ,Large,Programme Expenditure
UK Statistics Family,Office for National Statistics,09/12/2020,Exp - Purchase Of Goods/Services - IT Contractual Services,IT Operations,Methods Business & Digital Technology Ltd,192581,"88,893.80",Information Management Services,Large,Programme Expenditure
UK Statistics Family,Office for National Statistics,09/12/2020,Survey Incentive Vouchers,Census CCS Data Collection,Banner Group Ltd,192588,"184,800.00",Stationery,SME,Programme Expenditure
UK Statistics Family,Office for National Statistics,11/12/2020,Exp - Purchase Of Goods/Services - IT Contractual Services,Digital Publishing,Swirrl It Ltd,192708,"72,213.60",Information Management Services,SME,Programme Expenditure
UK Statistics Family,Office for National Statistics,11/12/2020,FM Contract Payments,FM Payments,Vinci Construction UK Limited,192709,"50,248.82",Facilities Mangement Services,Large,Programme Expenditure
UK Statistics Family,Office for National Statistics,11/12/2020,Other Goods And Services,Social Survey Transformation Newport,APS Group,192721,"293,749.79",Mailing Services,Large,Programme Expenditure
UK Statistics Family,Office for National Statistics,11/12/2020,Exp - Short-Term Contract & Agency Staff - Full Cost,Business Change Support,Talent International,192723,"4,237.54",Information Management Services,SME,Programme Expenditure
UK Statistics Family,Office for National Statistics,11/12/2020,Exp - Purchase Of Goods/Services - Contractors,Data Architecture,Talent International,192723,"52,968.00",Information Management Services,SME,Programme Expenditure
UK Statistics Family,Office for National Statistics,11/12/2020,Exp - Short-Term Contract & Agency Staff - Full Cost,Labour Market,Talent International,192723,"4,237.54",Information Management Services,SME,Programme Expenditure
UK Statistics Family,Office for National Statistics,11/12/2020,Exp - Purchase Of Goods/Services - Contractors,Digital Publishing,Parity Resources Limited,192725,"15,840.00",Information Management Services,Large,Programme Expenditure
UK Statistics Family,Office for National Statistics,11/12/2020,Exp - Purchase Of Goods/Services - Contractors,Digital Publishing,Parity Resources Limited,192725,"15,120.00",Information Management Services,Large,Programme Expenditure
UK Statistics Family,Office for National Statistics,11/12/2020,Exp - Purchase Of Goods/Services - Contractors,Researcher Support And Data Access ,Parity Resources Limited,192725,"3,008.22",Information Management Services,Large,Programme Expenditure
UK Statistics Family,Office for National Statistics,11/12/2020,Exp - Short-Term Contract & Agency Staff - Full Cost,Recruitment ,Parity Resources Limited,192725,"6,297.66",Information Management Services,Large,Programme Expenditure
UK Statistics Family,Office for National Statistics,11/12/2020,Exp - Short-Term Contract & Agency Staff - Full Cost,Recruitment ,Parity Resources Limited,192725,"1,465.20",Information Management Services,Large,Programme Expenditure
UK Statistics Family,Office for National Statistics,11/12/2020,Exp - Purchase Of Goods/Services - Contractors,Data Architecture,Parity Resources Limited,192725,"6,825.00",Information Management Services,Large,Programme Expenditure
UK Statistics Family,Office for National Statistics,11/12/2020,Other Goods And Services,Beyond 2021 Research And Design,The Sensible Code Company,192726,"161,280.00",Statistical Services,SME,Programme Expenditure
UK Statistics Family,Office for National Statistics,11/12/2020,Exp - Purchase Of Goods/Services - Contractors,Data Architecture,SmartSourcing Ltd,192729,"29,280.00",Information Management Services,SME,Programme Expenditure
UK Statistics Family,Office for National Statistics,11/12/2020,Exp - Purchase Of Goods/Services - Contractors,Strategy And Architecture,SmartSourcing Ltd,192729,647.33,Information Management Services,SME,Programme Expenditure
UK Statistics Family,Office for National Statistics,14/12/2020,Exp - Purchase Of Goods/Services - IT Contractual Services,Strategy And Architecture,E Synergy Solutions,192853,"12,600.00",Information Management Services,SME,Programme Expenditure
UK Statistics Family,Office for National Statistics,14/12/2020,Exp - Purchase Of Goods/Services - IT Contractual Services,Tech Delivery Legacy Sp,E Synergy Solutions,192853,"86,724.00",Information Management Services,SME,Programme Expenditure
UK Statistics Family,Office for National Statistics,14/12/2020,Exp - Purchase Of Goods/Services - IT Contractual Services,Data Science Campus,E Synergy Solutions,192853,"2,700.00",Information Management Services,SME,Programme Expenditure
UK Statistics Family,Office for National Statistics,14/12/2020,Other Goods And Services,Overseas Development,"Foreign, Commonwealth & Development Office",192855,"63,784.25",Subscription and Support Services,Large,Programme Expenditure
UK Statistics Family,Office for National Statistics,14/12/2020,Other Goods And Services,Social Survey Transformation Newport,APS Group,192860,"110,946.88",Mailing Services,Large,Programme Expenditure
UK Statistics Family,Office for National Statistics,14/12/2020,EXP - PURCHASE OF GOODS/SERVICES -  NON IT CONTRACTUAL PAYMENTS,Data Collection Service,Good Things Foundation,192862,"195,080.00",Census Assisted Digital Services,SME,Programme Expenditure
UK Statistics Family,Office for National Statistics,14/12/2020,Exp - Purchase Of Goods/Services - Contractors,MDR Management,Talent International,192863,"15,600.00",Information Management Services,SME,Programme Expenditure
UK Statistics Family,Office for National Statistics,14/12/2020,Exp - Purchase Of Goods/Services - Contractors,Data Architecture,Talent International,192863,"15,276.00",Information Management Services,SME,Programme Expenditure
UK Statistics Family,Office for National Statistics,14/12/2020,Exp - Purchase Of Goods/Services - Contractors,Programme Support,LA FOSSE ASSOCIATES LIMITED,192867,"14,400.00",Information Management Services,Large,Programme Expenditure
UK Statistics Family,Office for National Statistics,14/12/2020,Exp - Purchase Of Goods/Services - Contractors,Tech Delivery Legacy Sp,LA FOSSE ASSOCIATES LIMITED,192867,"14,400.00",Information Management Services,Large,Programme Expenditure
UK Statistics Family,Office for National Statistics,14/12/2020,Exp - Purchase Of Goods/Services - Contractors,Tech Delivery Legacy Sp,LA FOSSE ASSOCIATES LIMITED,192867,"14,400.00",Information Management Services,Large,Programme Expenditure
UK Statistics Family,Office for National Statistics,14/12/2020,Non IT Maintenance And Hire,Digital Delivery,Hewlett Packard International Bank DAC,192868,"474,200.68",Leasing of Devices,SME,Programme Expenditure
UK Statistics Family,Office for National Statistics,14/12/2020,End User Software And Hardware,CDIO UNGP,denodo,192869,"103,680.00",Software Licenses,SME,Programme Expenditure
UK Statistics Family,Office for National Statistics,15/12/2020,FM Contract Payments,FM Payments,Vinci Construction UK Limited,192975,"60,602.82",Facilities Mangement Services,Large,Programme Expenditure
UK Statistics Family,Office for National Statistics,15/12/2020,Exp - Purchase Of Goods And Services Consultants,Business Development,Clare Saunders Ltd,192980,"27,360.00",Consultancy,Large,Programme Expenditure
UK Statistics Family,Office for National Statistics,15/12/2020,Exp - Purchase Of Goods/Services - Contractors,Business Architecture,LA FOSSE ASSOCIATES LIMITED,192986,"15,570.00",Information Management Services,Large,Programme Expenditure
UK Statistics Family,Office for National Statistics,15/12/2020,Exp - Purchase Of Goods/Services - Contractors,Consultancy Management,LA FOSSE ASSOCIATES LIMITED,192986,719.99,Information Management Services,Large,Programme Expenditure
UK Statistics Family,Office for National Statistics,15/12/2020,Exp - Purchase Of Goods/Services - Contractors,Consultancy Management,LA FOSSE ASSOCIATES LIMITED,192986,"26,279.95",Information Management Services,Large,Programme Expenditure
UK Statistics Family,Office for National Statistics,15/12/2020,Exp - Purchase Of Goods/Services - Contractors,INTEGRATED DATA STRATEGY AND DELIVERY,LA FOSSE ASSOCIATES LIMITED,192986,"6,900.00",Information Management Services,Large,Programme Expenditure
UK Statistics Family,Office for National Statistics,15/12/2020,Exp - Purchase Of Goods/Services - Contractors,Tech Delivery Legacy Sp,LA FOSSE ASSOCIATES LIMITED,192986,"3,600.00",Information Management Services,Large,Programme Expenditure
UK Statistics Family,Office for National Statistics,15/12/2020,Exp - Purchase Of Goods/Services - Contractors,Business Statistics Transformation,LA FOSSE ASSOCIATES LIMITED,192986,"3,300.00",Information Management Services,Large,Programme Expenditure
UK Statistics Family,Office for National Statistics,15/12/2020,Marketing & Media,Stakeholder Engagement And Comms,M&C Saatchi UK Ltd,192988,"975,378.94",Marketing Services,Large,Programme Expenditure
UK Statistics Family,Office for National Statistics,15/12/2020,Marketing & Media,Stakeholder Engagement And Comms,Family & Education / iChild,192989,"283,874.40",Marketing Services,SME,Programme Expenditure
UK Statistics Family,Office for National Statistics,16/12/2020,Telecoms,IT Operations,Bt Global Services,193115,"49,780.39",Telephony Charges,Large,Programme Expenditure
UK Statistics Family,Office for National Statistics,16/12/2020,Accommodation & Building Management,Interview Management IPS,Heathrow Airport,193119,"39,747.86",Rental Charges,Large,Programme Expenditure
UK Statistics Family,Office for National Statistics,16/12/2020,Capitalised Consultancy  IT,Finance,Phoenix Software Ltd,193120,"20,790.00",Software Licenses,SME,Programme Expenditure
UK Statistics Family,Office for National Statistics,16/12/2020,End User Software And Hardware,IT Operations,Phoenix Software Ltd,193120,"37,770.60",Software Licenses,SME,Programme Expenditure
UK Statistics Family,Office for National Statistics,16/12/2020,End User Software And Hardware,IT Operations,Phoenix Software Ltd,193120,"35,850.06",Software Licenses,SME,Programme Expenditure
UK Statistics Family,Office for National Statistics,16/12/2020,Exp - Purchase Of Goods/Services - Contractors,Testing,Certes Computing Ltd,193129,"32,968.49",Information Management Services,SME,Programme Expenditure
UK Statistics Family,Office for National Statistics,16/12/2020,Exp - Purchase Of Goods/Services - Contractors,Programme Delivery,Certes Computing Ltd,193129,"9,447.02",Information Management Services,SME,Programme Expenditure
UK Statistics Family,Office for National Statistics,16/12/2020,Exp - Purchase Of Goods/Services - Contractors,Commercial Services,Certes Computing Ltd,193129,"10,674.60",Information Management Services,SME,Programme Expenditure
UK Statistics Family,Office for National Statistics,16/12/2020,Exp - Purchase Of Goods/Services - Contractors,Security Advisory,Certes Computing Ltd,193129,35868.24,Information Management Services,SME,Programme Expenditure
UK Statistics Family,Office for National Statistics,16/12/2020,Exp - Purchase Of Goods/Services - Contractors,Security Advisory,Certes Computing Ltd,193129,"16,653.12",Information Management Services,SME,Programme Expenditure
UK Statistics Family,Office for National Statistics,16/12/2020,Exp - Purchase Of Goods/Services - Contractors,Data Architecture,Certes Computing Ltd,193129,"26,637.33",Information Management Services,SME,Programme Expenditure
UK Statistics Family,Office for National Statistics,16/12/2020,Exp - Purchase Of Goods/Services - Contractors,Data Architecture,Certes Computing Ltd,193129,"16,140.72",Information Management Services,SME,Programme Expenditure
UK Statistics Family,Office for National Statistics,16/12/2020,Exp - Purchase Of Goods/Services - Contractors,Tech Delivery Legacy Sp,Certes Computing Ltd,193129,"25,197.48",Information Management Services,SME,Programme Expenditure
UK Statistics Family,Office for National Statistics,16/12/2020,Exp - Purchase Of Goods/Services - Contractors,Tech Delivery Legacy Sp,Certes Computing Ltd,193129,"19,983.72",Information Management Services,SME,Programme Expenditure
UK Statistics Family,Office for National Statistics,16/12/2020,Exp - Purchase Of Goods/Services - Contractors,Tech Delivery Data As A Platform,Certes Computing Ltd,193129,"13,450.56",Information Management Services,SME,Programme Expenditure
UK Statistics Family,Office for National Statistics,16/12/2020,Exp - Purchase Of Goods/Services - Contractors,Tech Delivery Data As A Platform,Certes Computing Ltd,193129,"13,678.63",Information Management Services,SME,Programme Expenditure
UK Statistics Family,Office for National Statistics,16/12/2020,Exp - Purchase Of Goods/Services - Contractors,IT Applications,Certes Computing Ltd,193129,"13,371.19",Information Management Services,SME,Programme Expenditure
UK Statistics Family,Office for National Statistics,16/12/2020,Exp - Purchase Of Goods/Services - Contractors,Digital Delivery,Certes Computing Ltd,193129,"6,480.00",Information Management Services,SME,Programme Expenditure
UK Statistics Family,Office for National Statistics,16/12/2020,Exp - Purchase Of Goods/Services - Contractors,Digital Delivery,Certes Computing Ltd,193129,"13,678.63",Information Management Services,SME,Programme Expenditure
UK Statistics Family,Office for National Statistics,16/12/2020,Exp - Purchase Of Goods/Services - Contractors,Digital Delivery,Certes Computing Ltd,193129,"27,284.40",Information Management Services,SME,Programme Expenditure
UK Statistics Family,Office for National Statistics,16/12/2020,Exp - Purchase Of Goods/Services - Contractors,Digital Delivery,Certes Computing Ltd,193129,"10,568.34",Information Management Services,SME,Programme Expenditure
UK Statistics Family,Office for National Statistics,16/12/2020,Exp - Purchase Of Goods/Services - Contractors,Digital Delivery,Certes Computing Ltd,193129,12912.48,Information Management Services,SME,Programme Expenditure
UK Statistics Family,Office for National Statistics,16/12/2020,Exp - Purchase Of Goods/Services - Contractors,Digital Delivery,Certes Computing Ltd,193129,"13,386.56",Information Management Services,SME,Programme Expenditure
UK Statistics Family,Office for National Statistics,16/12/2020,Exp - Short-Term Contract & Agency Staff - Full Cost,Stakeholder Engagement And Comms,La International,193130,"9,541.18",Information Management Services,SME,Programme Expenditure
UK Statistics Family,Office for National Statistics,16/12/2020,Exp - Purchase Of Goods/Services - Contractors,Business Architecture,La International,193130,"2,819.38",Information Management Services,SME,Programme Expenditure
UK Statistics Family,Office for National Statistics,16/12/2020,Exp - Purchase Of Goods/Services - Contractors,Testing,La International,193130,"54,112.83",Information Management Services,SME,Programme Expenditure
UK Statistics Family,Office for National Statistics,16/12/2020,Exp - Purchase Of Goods/Services - Contractors,Portfolio Delivery,La International,193130,"3,366.90",Information Management Services,SME,Programme Expenditure
UK Statistics Family,Office for National Statistics,16/12/2020,Exp - Short-Term Contract & Agency Staff - Full Cost,Recruitment ,La International,193130,"11,094.90",Information Management Services,SME,Programme Expenditure
UK Statistics Family,Office for National Statistics,16/12/2020,Exp - Purchase Of Goods/Services - Contractors,Security Advisory,La International,193130,"3,470.85",Information Management Services,SME,Programme Expenditure
UK Statistics Family,Office for National Statistics,16/12/2020,Exp - Purchase Of Goods/Services - Contractors,Data Architecture,La International,193130,"13,872.62",Information Management Services,SME,Programme Expenditure
UK Statistics Family,Office for National Statistics,16/12/2020,Exp - Purchase Of Goods/Services - Contractors,Data Architecture,La International,193130,7048.44,Information Management Services,SME,Programme Expenditure
UK Statistics Family,Office for National Statistics,16/12/2020,Exp - Purchase Of Goods/Services - Contractors,Data Architecture,La International,193130,"29,058.97",Information Management Services,SME,Programme Expenditure
UK Statistics Family,Office for National Statistics,16/12/2020,Exp - Purchase Of Goods/Services - Contractors,Data Architecture,La International,193130,"19,223.10",Information Management Services,SME,Programme Expenditure
UK Statistics Family,Office for National Statistics,16/12/2020,Exp - Purchase Of Goods/Services - Contractors,Tech Delivery Legacy Sp,La International,193130,14096.88,Information Management Services,SME,Programme Expenditure
UK Statistics Family,Office for National Statistics,16/12/2020,Exp - Purchase Of Goods/Services - Contractors,Tech Delivery Data As A Platform,La International,193130,"13,635.54",Information Management Services,SME,Programme Expenditure
UK Statistics Family,Office for National Statistics,16/12/2020,Exp - Purchase Of Goods/Services - Contractors,IT Applications,La International,193130,"23,029.82",Information Management Services,SME,Programme Expenditure
UK Statistics Family,Office for National Statistics,16/12/2020,Exp - Purchase Of Goods/Services - Contractors,Digital Delivery,La International,193130,4485.42,Information Management Services,SME,Programme Expenditure
UK Statistics Family,Office for National Statistics,16/12/2020,Exp - Purchase Of Goods/Services - Contractors,Digital Delivery,La International,193130,"14,364.00",Information Management Services,SME,Programme Expenditure
UK Statistics Family,Office for National Statistics,16/12/2020,Exp - Purchase Of Goods/Services - Contractors,Digital Delivery,La International,193130,"15,378.48",Information Management Services,SME,Programme Expenditure
UK Statistics Family,Office for National Statistics,16/12/2020,Exp - Purchase Of Goods/Services - Contractors,Digital Delivery,La International,193130,"14,353.20",Information Management Services,SME,Programme Expenditure
UK Statistics Family,Office for National Statistics,16/12/2020,Exp - Purchase Of Goods/Services - Contractors,Digital Delivery,La International,193130,"39,471.30",Information Management Services,SME,Programme Expenditure
UK Statistics Family,Office for National Statistics,16/12/2020,Exp - Short-Term Contract & Agency Staff - Full Cost,Social Survey Transformation Titchfield,La International,193130,"1,530.67",Information Management Services,SME,Programme Expenditure
UK Statistics Family,Office for National Statistics,16/12/2020,Stationery,Ask Business Services,APS Group,193142,"4,244.16",Mailing Services,Large,Programme Expenditure
UK Statistics Family,Office for National Statistics,16/12/2020,Stationery,Survey Processing Centre,APS Group,193142,"11,108.64",Mailing Services,Large,Programme Expenditure
UK Statistics Family,Office for National Statistics,16/12/2020,Other Goods And Services,Social Survey Transformation Newport,APS Group,193142,"273,267.17",Mailing Services,Large,Programme Expenditure
UK Statistics Family,Office for National Statistics,16/12/2020,Postage,Social Surveys Division,APS Group,193142,"1,212.41",Mailing Services,Large,Programme Expenditure
UK Statistics Family,Office for National Statistics,16/12/2020,Exp - Purchase Of Goods/Services - Contractors,Business Architecture,Malikshaw Interim & Executive,193147,"15,154.61",Information Management Services,SME,Programme Expenditure
UK Statistics Family,Office for National Statistics,16/12/2020,Exp - Purchase Of Goods/Services - Contractors,Testing,Malikshaw Interim & Executive,193147,"79,380.00",Information Management Services,SME,Programme Expenditure
UK Statistics Family,Office for National Statistics,16/12/2020,Exp - Purchase Of Goods/Services - Contractors,Programme Support,Malikshaw Interim & Executive,193147,"10,973.04",Information Management Services,SME,Programme Expenditure
UK Statistics Family,Office for National Statistics,16/12/2020,Exp - Purchase Of Goods/Services - Contractors,Digital Publishing,Malikshaw Interim & Executive,193147,"14,439.10",Information Management Services,SME,Programme Expenditure
UK Statistics Family,Office for National Statistics,16/12/2020,Exp - Short-Term Contract & Agency Staff - Full Cost,Business Change Support,Malikshaw Interim & Executive,193147,"4,449.41",Information Management Services,SME,Programme Expenditure
UK Statistics Family,Office for National Statistics,16/12/2020,Exp - Purchase Of Goods/Services - Contractors,Portfolio Delivery,Malikshaw Interim & Executive,193147,"7,920.00",Information Management Services,SME,Programme Expenditure
UK Statistics Family,Office for National Statistics,16/12/2020,Exp - Purchase Of Goods/Services - Contractors,Data Architecture,Malikshaw Interim & Executive,193147,"17,715.60",Information Management Services,SME,Programme Expenditure
UK Statistics Family,Office for National Statistics,16/12/2020,Exp - Purchase Of Goods/Services - Contractors,Strategy And Architecture,Malikshaw Interim & Executive,193147,"6,188.19",Information Management Services,SME,Programme Expenditure
UK Statistics Family,Office for National Statistics,16/12/2020,Exp - Purchase Of Goods/Services - Contractors,Tech Delivery Legacy Sp,Malikshaw Interim & Executive,193147,"14,439.10",Information Management Services,SME,Programme Expenditure
UK Statistics Family,Office for National Statistics,16/12/2020,Exp - Purchase Of Goods/Services - Contractors,Tech Delivery Legacy Sp,Malikshaw Interim & Executive,193147,"15,120.00",Information Management Services,SME,Programme Expenditure
UK Statistics Family,Office for National Statistics,16/12/2020,Exp - Purchase Of Goods/Services - Contractors,IT Applications,Malikshaw Interim & Executive,193147,"15,120.00",Information Management Services,SME,Programme Expenditure
UK Statistics Family,Office for National Statistics,16/12/2020,Exp - Purchase Of Goods/Services - Contractors,Digital Delivery,Malikshaw Interim & Executive,193147,"15,120.00",Information Management Services,SME,Programme Expenditure
UK Statistics Family,Office for National Statistics,16/12/2020,Exp - Purchase Of Goods/Services - Contractors,Data Science Campus,Malikshaw Interim & Executive,193147,"12,120.00",Information Management Services,SME,Programme Expenditure
UK Statistics Family,Office for National Statistics,16/12/2020,Exp - Short-Term Contract & Agency Staff - Full Cost,Data As A Service,Malikshaw Interim & Executive,193147,"5,598.00",Information Management Services,SME,Programme Expenditure
UK Statistics Family,Office for National Statistics,16/12/2020,EXP - PURCHASE OF GOODS/SERVICES -  NON IT CONTRACTUAL PAYMENTS,Data Collection Service,Serco Ltd,193148,"58,558.02",Census Contact Centre,Large,Programme Expenditure
UK Statistics Family,Office for National Statistics,16/12/2020,Exp - Purchase Of Goods/Services - IT Contractual Services,Office Of Chief Data And Information,Akamai Technologies Limited,193166,"36,200.00",Information Management Services,SME,Programme Expenditure
UK Statistics Family,Office for National Statistics,16/12/2020,Exp - Purchase Of Goods/Services - IT Contractual Services,International Trade And Transactions,Mango Solutions,193171,"15,504.00",Information Management Services,SME,Programme Expenditure
UK Statistics Family,Office for National Statistics,16/12/2020,Exp - Purchase Of Goods/Services - IT Contractual Services,International Trade And Transactions,Mango Solutions,193171,"46,699.68",Information Management Services,SME,Programme Expenditure
UK Statistics Family,Office for National Statistics,16/12/2020,Surveys,Prices Division,Mintel Group Ltd,193174,"41,631.72",Data Acquisition,Large,Programme Expenditure
UK Statistics Family,Office for National Statistics,16/12/2020,Exp - Purchase Of Goods/Services - IT Contractual Services,Digital Publishing,Swirrl It Ltd,193175,"72,213.60",Information Management Services,SME,Programme Expenditure
UK Statistics Family,Office for National Statistics,16/12/2020,Exp - Purchase Of Goods/Services - Incentive Payments,Survey Management,Park Retail Ltd,193177,"34,614.37",Survey Response Incentive Vouchers,Large,Programme Expenditure
UK Statistics Family,Office for National Statistics,16/12/2020,Exp - Purchase Of Goods/Services - Incentive Payments,Survey Management,Park Retail Ltd,193177,"8,574.13",Survey Response Incentive Vouchers,Large,Programme Expenditure
UK Statistics Family,Office for National Statistics,16/12/2020,Exp - Purchase Of Goods/Services - Incentive Payments,Survey Management,Park Retail Ltd,193177,"1,855.72",Survey Response Incentive Vouchers,Large,Programme Expenditure
UK Statistics Family,Office for National Statistics,16/12/2020,Exp - Purchase Of Goods/Services - Incentive Payments,Survey Management,Park Retail Ltd,193177,"-1,072.88",Survey Response Incentive Vouchers,Large,Programme Expenditure
UK Statistics Family,Office for National Statistics,16/12/2020,Exp - Purchase Of Goods/Services - Incentive Payments,Survey Management,Park Retail Ltd,193177,-795.73,Survey Response Incentive Vouchers,Large,Programme Expenditure
UK Statistics Family,Office for National Statistics,16/12/2020,Exp - Purchase Of Goods/Services - Contractors,Data Architecture,Empiric Solutions Limited,193179,"18,270.00",Information Management Services,Large,Programme Expenditure
UK Statistics Family,Office for National Statistics,16/12/2020,Exp - Purchase Of Goods/Services - IT Contractual Services,Strategy And Architecture,Empiric Solutions Limited,193179,"131,040.00",Information Management Services,Large,Programme Expenditure
UK Statistics Family,Office for National Statistics,16/12/2020,Exp - Short-Term Contract & Agency Staff - Full Cost,Stakeholder Engagement And Comms,Concept Information Technology Ltd T/A Concept Resourcing,193180,"3,842.27",Information Management Services,Large,Programme Expenditure
UK Statistics Family,Office for National Statistics,16/12/2020,Exp - Purchase Of Goods/Services - Contractors,Testing,Concept Information Technology Ltd T/A Concept Resourcing,193180,"13,235.40",Information Management Services,Large,Programme Expenditure
UK Statistics Family,Office for National Statistics,16/12/2020,Exp - Short-Term Contract & Agency Staff - Full Cost,Business Change Support,Concept Information Technology Ltd T/A Concept Resourcing,193180,"10,617.83",Information Management Services,Large,Programme Expenditure
UK Statistics Family,Office for National Statistics,16/12/2020,Exp - Short-Term Contract & Agency Staff - Full Cost,Business Change Support,Concept Information Technology Ltd T/A Concept Resourcing,193180,"20,689.89",Information Management Services,Large,Programme Expenditure
UK Statistics Family,Office for National Statistics,16/12/2020,Exp - Short-Term Contract & Agency Staff - Full Cost,Business Change Support,Concept Information Technology Ltd T/A Concept Resourcing,193180,"9,652.34",Information Management Services,Large,Programme Expenditure
UK Statistics Family,Office for National Statistics,16/12/2020,Exp - Short-Term Contract & Agency Staff - Full Cost,Business Change Support,Concept Information Technology Ltd T/A Concept Resourcing,193180,"23,158.68",Information Management Services,Large,Programme Expenditure
UK Statistics Family,Office for National Statistics,16/12/2020,Exp - Short-Term Contract & Agency Staff - Full Cost,Business Change Support,Concept Information Technology Ltd T/A Concept Resourcing,193180,"4,835.69",Information Management Services,Large,Programme Expenditure
UK Statistics Family,Office for National Statistics,16/12/2020,Exp - Short-Term Contract & Agency Staff - Full Cost,Business Change Support,Concept Information Technology Ltd T/A Concept Resourcing,193180,"8,059.49",Information Management Services,Large,Programme Expenditure
UK Statistics Family,Office for National Statistics,16/12/2020,Exp - Short-Term Contract & Agency Staff - Full Cost,International Trade And Transactions,Concept Information Technology Ltd T/A Concept Resourcing,193180,"17,400.83",Information Management Services,Large,Programme Expenditure
UK Statistics Family,Office for National Statistics,16/12/2020,Exp - Short-Term Contract & Agency Staff - Full Cost,International Trade And Transactions,Concept Information Technology Ltd T/A Concept Resourcing,193180,"6,044.62",Information Management Services,Large,Programme Expenditure
UK Statistics Family,Office for National Statistics,16/12/2020,Exp - Short-Term Contract & Agency Staff - Full Cost,International Trade And Transactions,Concept Information Technology Ltd T/A Concept Resourcing,193180,"4,030.02",Information Management Services,Large,Programme Expenditure
UK Statistics Family,Office for National Statistics,16/12/2020,Exp - Short-Term Contract & Agency Staff - Full Cost,Strategy And Engagement,Concept Information Technology Ltd T/A Concept Resourcing,193180,"5,057.05",Information Management Services,Large,Programme Expenditure
UK Statistics Family,Office for National Statistics,16/12/2020,Exp - Short-Term Contract & Agency Staff - Full Cost,Business Architecture Transformation And Statistical Strategy,Concept Information Technology Ltd T/A Concept Resourcing,193180,"5,037.18",Information Management Services,Large,Programme Expenditure
UK Statistics Family,Office for National Statistics,16/12/2020,Exp - Short-Term Contract & Agency Staff - Full Cost,Finance,Concept Information Technology Ltd T/A Concept Resourcing,193180,"2,692.62",Information Management Services,Large,Programme Expenditure
UK Statistics Family,Office for National Statistics,16/12/2020,Exp - Purchase Of Goods/Services - Contractors,Census & Soc Methodology Dd,Concept Information Technology Ltd T/A Concept Resourcing,193180,5161.5,Information Management Services,Large,Programme Expenditure
UK Statistics Family,Office for National Statistics,16/12/2020,Exp - Short-Term Contract & Agency Staff - Full Cost,Data Architecture,Concept Information Technology Ltd T/A Concept Resourcing,193180,"11,304.85",Information Management Services,Large,Programme Expenditure
UK Statistics Family,Office for National Statistics,16/12/2020,Exp - Purchase Of Goods/Services - Contractors,Data Architecture,Concept Information Technology Ltd T/A Concept Resourcing,193180,"47,940.00",Information Management Services,Large,Programme Expenditure
UK Statistics Family,Office for National Statistics,16/12/2020,Exp - Purchase Of Goods/Services - Contractors,CLOUD ARCHITECTURE,Concept Information Technology Ltd T/A Concept Resourcing,193180,"2,226.00",Information Management Services,Large,Programme Expenditure
UK Statistics Family,Office for National Statistics,16/12/2020,Exp - Purchase Of Goods/Services - IT Contractual Services,Tech Delivery Data As A Platform,Concept Information Technology Ltd T/A Concept Resourcing,193180,"15,000.00",Information Management Services,Large,Programme Expenditure
UK Statistics Family,Office for National Statistics,16/12/2020,Exp - Purchase Of Goods/Services - Contractors,Office Of Chief Data And Information,Concept Information Technology Ltd T/A Concept Resourcing,193180,3180,Information Management Services,Large,Programme Expenditure
UK Statistics Family,Office for National Statistics,16/12/2020,Exp - Short-Term Contract & Agency Staff - Full Cost,Business Statistics Transformation,Concept Information Technology Ltd T/A Concept Resourcing,193180,"5,037.18",Information Management Services,Large,Programme Expenditure
UK Statistics Family,Office for National Statistics,16/12/2020,Exp - Short-Term Contract & Agency Staff - Full Cost,Business Statistics Transformation,Concept Information Technology Ltd T/A Concept Resourcing,193180,"17,572.94",Information Management Services,Large,Programme Expenditure
UK Statistics Family,Office for National Statistics,16/12/2020,Exp - Short-Term Contract & Agency Staff - Full Cost,Business Statistics Transformation,Concept Information Technology Ltd T/A Concept Resourcing,193180,"3,927.18",Information Management Services,Large,Programme Expenditure
UK Statistics Family,Office for National Statistics,16/12/2020,Exp - Short-Term Contract & Agency Staff - Full Cost,Interviewer Management TU,Concept Information Technology Ltd T/A Concept Resourcing,193180,"3,191.14",Information Management Services,Large,Programme Expenditure
UK Statistics Family,Office for National Statistics,16/12/2020,Exp - Short-Term Contract & Agency Staff - Full Cost,Prices Division,Concept Information Technology Ltd T/A Concept Resourcing,193180,"3,022.31",Information Management Services,Large,Programme Expenditure
UK Statistics Family,Office for National Statistics,16/12/2020,Exp - Short-Term Contract & Agency Staff - Full Cost,Prices Division,Concept Information Technology Ltd T/A Concept Resourcing,193180,785.44,Information Management Services,Large,Programme Expenditure
UK Statistics Family,Office for National Statistics,16/12/2020,Exp - Short-Term Contract & Agency Staff - Full Cost,Prices Division,Concept Information Technology Ltd T/A Concept Resourcing,193180,"3,839.15",Information Management Services,Large,Programme Expenditure
UK Statistics Family,Office for National Statistics,16/12/2020,Exp - Short-Term Contract & Agency Staff - Full Cost,Labour Market,Concept Information Technology Ltd T/A Concept Resourcing,193180,"3,687.42",Information Management Services,Large,Programme Expenditure
UK Statistics Family,Office for National Statistics,18/12/2020,Exp - Purchase Of Goods And Services Consultants,Consultancy Management,Deloitte,193202,"199,456.80",Consultancy,Large,Programme Expenditure
UK Statistics Family,Office for National Statistics,18/12/2020,Exp - Purchase Of Goods/Services - Other Facilities Costs,Ask Business Services,BaxterStorey,193203,"85,363.76",On-Site Facilities,Large,Programme Expenditure
UK Statistics Family,Office for National Statistics,18/12/2020,Exp - Purchase Of Goods/Services - Contractors,Census CCS Data Collection,SmartSourcing Ltd,193205,"32,757.98",Information Management Services,SME,Programme Expenditure
UK Statistics Family,Office for National Statistics,18/12/2020,Marketing & Media,Stakeholder Engagement And Comms,M&C Saatchi UK Ltd,193206,"56,400.00",Marketing Services,Large,Programme Expenditure
UK Statistics Family,Office for National Statistics,18/12/2020,Survey Incentive Vouchers,Census CCS Data Collection,Banner Group Ltd,193207,"176,256.00",Stationery,SME,Programme Expenditure
UK Statistics Family,Office for National Statistics,18/12/2020,EXP - PURCHASE OF GOODS/SERVICES -  NON IT CONTRACTUAL PAYMENTS,Census CCS Data Collection,Banner Group Ltd,193207,"437,388.00",Stationery,SME,Programme Expenditure
UK Statistics Family,Office for National Statistics,21/12/2020,Postage,Property Titchfield,Pitney Bowes Ltd,193304,"55,112.50",Postage,Large,Programme Expenditure
UK Statistics Family,Office for National Statistics,21/12/2020,Surveys,Crime Statistics,Kantar UK Ltd,193306,"244,508.40",Statistical Services,Large,Programme Expenditure
UK Statistics Family,Office for National Statistics,21/12/2020,Exp - Purchase Of Goods/Services - Contractors,Tech Delivery Data As A Platform,Talent International,193307,"14,399.76",Information Management Services,SME,Programme Expenditure
UK Statistics Family,Office for National Statistics,21/12/2020,Exp - Purchase Of Goods/Services - Contractors,IT Applications,Talent International,193307,"14,399.76",Information Management Services,SME,Programme Expenditure
UK Statistics Family,Office for National Statistics,21/12/2020,Exp - Purchase Of Goods/Services - Contractors,Business Architecture,LA FOSSE ASSOCIATES LIMITED,193309,"13,890.00",Information Management Services,Large,Programme Expenditure
UK Statistics Family,Office for National Statistics,21/12/2020,Exp - Purchase Of Goods/Services - Contractors,Consultancy Management,LA FOSSE ASSOCIATES LIMITED,193309,"23,549.94",Information Management Services,Large,Programme Expenditure
UK Statistics Family,Office for National Statistics,21/12/2020,Exp - Purchase Of Goods/Services - Contractors,Data Architecture,LA FOSSE ASSOCIATES LIMITED,193309,"4,050.00",Information Management Services,Large,Programme Expenditure
UK Statistics Family,Office for National Statistics,21/12/2020,Exp - Purchase Of Goods/Services - Contractors,Tech Delivery Legacy Sp,LA FOSSE ASSOCIATES LIMITED,193309,"3,600.00",Information Management Services,Large,Programme Expenditure
UK Statistics Family,Office for National Statistics,21/12/2020,Exp - Purchase Of Goods/Services - Contractors,Business Statistics Transformation,LA FOSSE ASSOCIATES LIMITED,193309,"3,300.00",Information Management Services,Large,Programme Expenditure
UK Statistics Family,Office for National Statistics,21/12/2020,Telecoms,IT Operations,Cdw Limited,193311,"104,304.00",Software Licenses,Large,Programme Expenditure
UK Statistics Family,Office for National Statistics,22/12/2020,Postage,Survey Processing Centre,DHL Parcel Ltd,193375,"32,985.64",Courier Services,Large,Programme Expenditure
UK Statistics Family,Office for National Statistics,23/12/2020,Exp - Purchase Of Goods/Services - IT Contractual Services,Tech Delivery Data As A Platform,Kainos,193382,"108,435.20",Information Management Services,Large,Programme Expenditure
UK Statistics Family,Office for National Statistics,23/12/2020,Hosting,Tech Delivery Data As A Platform,Kainos,193382,"6,573.58",Information Management Services,Large,Programme Expenditure
UK Statistics Family,Office for National Statistics,23/12/2020,Exp - Purchase Of Goods/Services - IT Contractual Services,CLOUD ARCHITECTURE,E Synergy Solutions,193383,"15,120.00",Information Management Services,SME,Programme Expenditure
UK Statistics Family,Office for National Statistics,23/12/2020,Exp - Purchase Of Goods/Services - IT Contractual Services,Strategy And Architecture,E Synergy Solutions,193383,15300,Information Management Services,SME,Programme Expenditure
UK Statistics Family,Office for National Statistics,23/12/2020,Exp - Purchase Of Goods/Services - IT Contractual Services,Tech Delivery Legacy Sp,E Synergy Solutions,193383,"82,782.00",Information Management Services,SME,Programme Expenditure
UK Statistics Family,Office for National Statistics,23/12/2020,Exp - Purchase Of Goods/Services - IT Contractual Services,Tech Delivery Next Gen IT And Infrastructure,E Synergy Solutions,193383,"30,240.00",Information Management Services,SME,Programme Expenditure
UK Statistics Family,Office for National Statistics,23/12/2020,Exp - Purchase Of Goods/Services - IT Contractual Services,Digital Delivery,E Synergy Solutions,193383,"14,490.00",Information Management Services,SME,Programme Expenditure
UK Statistics Family,Office for National Statistics,23/12/2020,Exp - Purchase Of Goods/Services - IT Contractual Services,Data Science Campus,E Synergy Solutions,193383,"3,600.00",Information Management Services,SME,Programme Expenditure
UK Statistics Family,Office for National Statistics,23/12/2020,FM Contract Payments,FM Payments,Vinci Construction UK Limited,193384,"331,714.49",Facilities Mangement Services,Large,Programme Expenditure
UK Statistics Family,Office for National Statistics,23/12/2020,Exp - Purchase Of Goods/Services - IT Contractual Services,Strategy And Architecture,Ibm United Kingdom Ltd,193388,"47,053.91",Information Management Services,Large,Programme Expenditure
UK Statistics Family,Office for National Statistics,23/12/2020,End User Software And Hardware,Census CCS Data Collection,Softcat,193389,"33,680.53",Software Licenses,SME,Programme Expenditure
UK Statistics Family,Office for National Statistics,23/12/2020,End User Software And Hardware,Operations,Softcat,193389,"78,587.92",Software Licenses,SME,Programme Expenditure
UK Statistics Family,Office for National Statistics,23/12/2020,End User Software And Hardware,IT Operations,Softcat,193389,"326,803.25",Software Licenses,SME,Programme Expenditure
UK Statistics Family,Office for National Statistics,23/12/2020,End User Software And Hardware,IT Operations,Softcat,193389,31691.8,Software Licenses,SME,Programme Expenditure
UK Statistics Family,Office for National Statistics,23/12/2020,IT (Owned) At Cost - Additions,IT Operations,Centerprise International Ltd,193392,"105,600.00",Computers and Peripherals,Large,Programme Expenditure
UK Statistics Family,Office for National Statistics,23/12/2020,Exp - Purchase Of Goods/Services - Contractors,Testing,La International,193394,"4,383.02",Information Management Services,SME,Programme Expenditure
UK Statistics Family,Office for National Statistics,23/12/2020,Exp - Short-Term Contract & Agency Staff - Full Cost,Census CCS Data Collection,La International,193394,329.28,Information Management Services,SME,Programme Expenditure
UK Statistics Family,Office for National Statistics,23/12/2020,Exp - Purchase Of Goods/Services - Contractors,Business Architecture Transformation And Statistical Strategy,La International,193394,"9,483.39",Information Management Services,SME,Programme Expenditure
UK Statistics Family,Office for National Statistics,23/12/2020,Exp - Short-Term Contract & Agency Staff - Full Cost,Recruitment ,La International,193394,823.17,Information Management Services,SME,Programme Expenditure
UK Statistics Family,Office for National Statistics,23/12/2020,Exp - Purchase Of Goods/Services - Contractors,Security Advisory,La International,193394,"3,470.85",Information Management Services,SME,Programme Expenditure
UK Statistics Family,Office for National Statistics,23/12/2020,Exp - Purchase Of Goods/Services - Contractors,Tech Delivery Legacy Sp,La International,193394,"20,632.93",Information Management Services,SME,Programme Expenditure
UK Statistics Family,Office for National Statistics,23/12/2020,Exp - Purchase Of Goods/Services - Contractors,Tech Delivery Legacy Sp,La International,193394,"6,279.59",Information Management Services,SME,Programme Expenditure
UK Statistics Family,Office for National Statistics,23/12/2020,Exp - Short-Term Contract & Agency Staff - Full Cost,Social Survey Transformation Titchfield,La International,193394,792.10,Information Management Services,SME,Programme Expenditure
UK Statistics Family,Office for National Statistics,23/12/2020,Exp - Purchase Of Goods/Services - IT Contractual Services,Security Operations,Computacenter (Uk) Limited,193395,"99,511.09",Information Management Services,Large,Programme Expenditure
UK Statistics Family,Office for National Statistics,23/12/2020,"ICT Outsourcing, Maintenance And Support",Senior Management Team Design,Totalmobile Ltd,193398,"395,534.70",Information Management Services,SME,Programme Expenditure
UK Statistics Family,Office for National Statistics,23/12/2020,"ICT Outsourcing, Maintenance And Support",Consultancy Management,Totalmobile Ltd,193398,"154,080.00",Information Management Services,SME,Programme Expenditure
UK Statistics Family,Office for National Statistics,23/12/2020,Survey Incentive Vouchers,Property Services,Gresham Office Furniture Limited,193400,"42,070.80",Office Furniture,SME,Programme Expenditure
UK Statistics Family,Office for National Statistics,23/12/2020,Hosting,IT Operations,Amazon Web Services Inc,193401,"91,685.89",Information Management Services,Large,Programme Expenditure
UK Statistics Family,Office for National Statistics,23/12/2020,Exp - Purchase Of Goods/Services - IT Contractual Services,Digital Delivery,Methods Business & Digital Technology Ltd,193402,"216,942.00",Information Management Services,Large,Programme Expenditure
UK Statistics Family,Office for National Statistics,23/12/2020,Exp - Purchase Of Goods/Services - Contractors,Programme Support,Parity Resources Limited,193403,"8,992.05",Information Management Services,Large,Programme Expenditure
UK Statistics Family,Office for National Statistics,23/12/2020,Exp - Purchase Of Goods/Services - Contractors,Covid Infection Survey,Parity Resources Limited,193403,"6,000.00",Information Management Services,Large,Programme Expenditure
UK Statistics Family,Office for National Statistics,23/12/2020,Exp - Purchase Of Goods/Services - Contractors,Covid Infection Survey,Parity Resources Limited,193403,"3,034.63",Information Management Services,Large,Programme Expenditure
UK Statistics Family,Office for National Statistics,23/12/2020,Exp - Purchase Of Goods/Services - Contractors,Analysis Microdata And Engagement,Parity Resources Limited,193403,488.47,Information Management Services,Large,Programme Expenditure
UK Statistics Family,Office for National Statistics,23/12/2020,Exp - Short-Term Contract & Agency Staff - Full Cost,Recruitment ,Parity Resources Limited,193403,706.86,Information Management Services,Large,Programme Expenditure
UK Statistics Family,Office for National Statistics,23/12/2020,Exp - Short-Term Contract & Agency Staff - Full Cost,Recruitment ,Parity Resources Limited,193403,"1,748.34",Information Management Services,Large,Programme Expenditure
UK Statistics Family,Office for National Statistics,23/12/2020,Exp - Short-Term Contract & Agency Staff - Full Cost,Data Architecture,Parity Resources Limited,193403,"1,425.60",Information Management Services,Large,Programme Expenditure
UK Statistics Family,Office for National Statistics,23/12/2020,Exp - Purchase Of Goods/Services - Contractors,Data Architecture,Parity Resources Limited,193403,"3,592.56",Information Management Services,Large,Programme Expenditure
UK Statistics Family,Office for National Statistics,23/12/2020,Exp - Short-Term Contract & Agency Staff - Full Cost,Social Survey Transformation Titchfield,Parity Resources Limited,193403,471.53,Information Management Services,Large,Programme Expenditure
UK Statistics Family,Office for National Statistics,23/12/2020,Other Goods And Services,Beyond 2021 Research And Design,The Sensible Code Company,193404,92160,Statistical Services,SME,Programme Expenditure
UK Statistics Family,Office for National Statistics,23/12/2020,Plant & Machinery At Cost - Additions,Property Services,Canon UK Ltd,193405,"92,874.07",Reprographic Equipment,Large,Programme Expenditure
UK Statistics Family,Office for National Statistics,23/12/2020,Non IT Maintenance And Hire,Ask Business Services,Canon UK Ltd,193405,780.37,Reprographic Equipment,Large,Programme Expenditure
UK Statistics Family,Office for National Statistics,23/12/2020,Marketing & Media,Stakeholder Engagement And Comms,M&C Saatchi UK Ltd,193407,"33,398.82",Marketing Services,Large,Programme Expenditure
UK Statistics Family,Office for National Statistics,23/12/2020,Exp - Purchase Of Goods/Services - IT Contractual Services,IT Operations,CTS (Cloud Technology Solutions Ltd),193411,"130,964.40",DST Infrastructure Preparation,Large,Programme Expenditure
UK Statistics Family,Office for National Statistics,23/12/2020,Hosting,IT Operations,CTS (Cloud Technology Solutions Ltd),193411,"132,350.71",DST Infrastructure Preparation,Large,Programme Expenditure
UK Statistics Family,Office for National Statistics,23/12/2020,EXP - PURCHASE OF GOODS/SERVICES -  NON IT CONTRACTUAL PAYMENTS,Data Collection Service,HH Associates Ltd,193412,"561,134.44",Print and Post Services,SME,Programme Expenditure
UK Statistics Family,Office for National Statistics,23/12/2020,EXP - PURCHASE OF GOODS/SERVICES -  NON IT CONTRACTUAL PAYMENTS,Covid Infection Survey,HH Associates Ltd,193412,"83,711.70",Print and Post Services,SME,Programme Expenditure
UK Statistics Family,Office for National Statistics,23/12/2020,EXP - PURCHASE OF GOODS/SERVICES -  NON IT CONTRACTUAL PAYMENTS,Census CCS Data Collection,Adecco UK Limited,193413,1088074.7,Census People Services Contractual,SME,Programme Expenditure
UK Statistics Family,Office for National Statistics,23/12/2020,Surveys,Crime Statistics,Kantar UK Ltd,193414,"243,253.20",Statistical Services,Large,Programme Expenditure
UK Statistics Family,Office for National Statistics,23/12/2020,Exp - Purchase Of Goods/Services - IT Contractual Services,IT Applications,Diegesis Limited,193417,"147,960.00",Information Management Services,Large,Programme Expenditure
UK Statistics Family,Office for National Statistics,23/12/2020,Exp - Purchase Of Goods/Services - Incentive Payments,Covid Infection Survey,Sodexo Motivation Solutions U.K. ltd,193418,"32,988.00",Survey Response Incentive Vouchers,Large,Programme Expenditure
UK Statistics Family,Office for National Statistics,23/12/2020,Exp - Purchase Of Goods/Services - IT Contractual Services,Digital Delivery,Equal Experts UK Ltd,193420,"129,009.60",Information Management Services,Large,Programme Expenditure
UK Statistics Family,Office for National Statistics,23/12/2020,Survey Incentive Vouchers,Census CCS Data Collection,Banner Group Ltd,193421,"91,961.28",Stationery,SME,Programme Expenditure
UK Statistics Family,Office for National Statistics,23/12/2020,Other Goods And Services,Census CCS Data Collection,Banner Group Ltd,193421,"68,558.40",Stationery,SME,Programme Expenditure
UK Statistics Family,Office for National Statistics,23/12/2020,EXP - PURCHASE OF GOODS/SERVICES -  NON IT CONTRACTUAL PAYMENTS,Census CCS Data Collection,Banner Group Ltd,193421,"245,058.72",Stationery,SME,Programme Expenditure
UK Statistics Family,Office for National Statistics,04/12/2020,Exp - Purchase Of Goods/Services - Incentive Payments,Covid Infection Survey,Sodexo Motivation Solutions U.K. ltd,30002364,344353.8,Survey Response Incentive Vouchers,Large,Programme Expenditure
UK Statistics Family,Office for National Statistics,04/12/2020,Exp - Purchase Of Goods/Services - Incentive Payments,Covid Infection Survey,Sodexo Motivation Solutions U.K. ltd,30002365,"730,447.00",Survey Response Incentive Vouchers,Large,Programme Expenditure
UK Statistics Family,Office for National Statistics,04/12/2020,Exp - Purchase Of Goods/Services - Incentive Payments,Covid Infection Survey,Sodexo Motivation Solutions U.K. ltd,30002366,882614.08,Survey Response Incentive Vouchers,Large,Programme Expenditure
UK Statistics Family,Office for National Statistics,04/12/2020,EXP - PURCHASE OF GOODS/SERVICES -  NON IT CONTRACTUAL PAYMENTS,Census CCS Data Collection,Adecco UK Limited,30002368,1394796,Census People Services Contractual,SME,Programme Expenditure
UK Statistics Family,Office for National Statistics,04/12/2020,EXP - PURCHASE OF GOODS/SERVICES -  NON IT CONTRACTUAL PAYMENTS,Data Collection Service,Leidos Innovations UK Limited,30002369,"3,022,499.38",Questionnaire Management,Large,Programme Expenditure
UK Statistics Family,Office for National Statistics,04/12/2020,Surveys,Prices Division,Kantar UK Ltd,30002370,"205,897.00",Statistical Services,Large,Programme Expenditure
UK Statistics Family,Office for National Statistics,04/12/2020,Exp - Purchase Of Goods/Services - IT Contractual Services,IT Operations,CTS (Cloud Technology Solutions Ltd),30002371,130964.4,DST Infrastructure Preparation,Large,Programme Expenditure
UK Statistics Family,Office for National Statistics,07/12/2020,Exp - Purchase Of Goods/Services - Incentive Payments,Covid Infection Survey,Sodexo Motivation Solutions U.K. ltd,30002377,"1,396,022.24",Survey Response Incentive Vouchers,Large,Programme Expenditure
UK Statistics Family,Office for National Statistics,07/12/2020,Exp - Purchase Of Goods/Services - Incentive Payments,Covid Infection Survey,Sodexo Motivation Solutions U.K. ltd,30002378,"63,384.00",Survey Response Incentive Vouchers,Large,Programme Expenditure
UK Statistics Family,Office for National Statistics,09/12/2020,Exp - Purchase Of Goods/Services - Incentive Payments,Covid Infection Survey,Sodexo Motivation Solutions U.K. ltd,30002391,"1,731,000.96",Survey Response Incentive Vouchers,Large,Programme Expenditure
UK Statistics Family,Office for National Statistics,09/12/2020,Surveys,Covid Infection Survey,IQVIA Limited,30002392,"28,711,080.00",Statistical Services,Large,Programme Expenditure
UK Statistics Family,Office for National Statistics,11/12/2020,EXP - PURCHASE OF GOODS/SERVICES -  NON IT CONTRACTUAL PAYMENTS,Data Collection Service,Leidos Innovations UK Limited,30002393,"3,356,000.24",Questionnaire Management,Large,Programme Expenditure
UK Statistics Family,Office for National Statistics,11/12/2020,Exp - Purchase Of Goods/Services - Incentive Payments,Covid Infection Survey,Sodexo Motivation Solutions U.K. ltd,30002394,"1,079,528.44",Survey Response Incentive Vouchers,Large,Programme Expenditure
UK Statistics Family,Office for National Statistics,14/12/2020,PAYE,Census Field Op's,HM Revenue & Customs,30002401,"253,260.41",PAYE due,Large,Programme Expenditure
UK Statistics Family,Office for National Statistics,16/12/2020,Exp - Purchase Of Goods/Services - Incentive Payments,Covid Infection Survey,Sodexo Motivation Solutions U.K. ltd,30002409,"111,943.20",Survey Response Incentive Vouchers,Large,Programme Expenditure
UK Statistics Family,Office for National Statistics,17/12/2020,Exp - Purchase Of Goods/Services - Incentive Payments,Covid Infection Survey,Sodexo Motivation Solutions U.K. ltd,30002414,"1,843,929.08",Survey Response Incentive Vouchers,Large,Programme Expenditure
UK Statistics Family,Office for National Statistics,17/12/2020,Exp - Purchase Of Goods/Services - Training & Development - Seminar & Conference Fees,Office Of Chief Data And Information,Nielsen Norman Group,30002415,"51,379.64",Training and Educational Services,SME,Programme Expenditure
UK Statistics Family,Office for National Statistics,18/12/2020,Exp - Purchase Of Goods/Services - Incentive Payments,Covid Infection Survey,Sodexo Motivation Solutions U.K. ltd,30002417,"530,645.04",Survey Response Incentive Vouchers,Large,Programme Expenditure
UK Statistics Family,Office for National Statistics,22/12/2020,Other Goods And Services,Data Science Campus,United Nations Foundation,30002432,"40,650.20",Software Licenses,SME,Programme Expenditure
UK Statistics Family,Office for National Statistics,23/12/2020,Exp - Purchase Of Goods/Services - Incentive Payments,Covid Infection Survey,Sodexo Motivation Solutions U.K. ltd,30002434,"2,534,642.12",Survey Response Incentive Vouchers,Large,Programme Expenditure
UK Statistics Family,Office for National Statistics,31/12/2020,Exp - Purchase Of Goods/Services - Incentive Payments,Covid Infection Survey,Sodexo Motivation Solutions U.K. ltd,30002436,"700,860.44",Survey Response Incentive Vouchers,Large,Programme Expenditure
,,,,,,Report Total,"78,121,836.18",,,
